[Event "Late-Titled-Tuesday-Blitz-June-04-2024"]
[Site "Chess.com"]
[Date "2024.06.04"]
[Round "4"]
[White "ericovski"]
[Black "sari07"]
[Result "1/2-1/2"]
[WhiteElo "2581"]
[BlackElo "2390"]
[TimeControl "180+1"]
[EndTime "14:40:12 PDT"]
[Termination "Game drawn by repetition"]

1. Nf3 {[%clk 0:02:59.8]} 1... c5 {[%clk 0:02:59.4]} 2. c4 {[%clk 0:02:59.6]}
2... g6 {[%clk 0:02:54.4]} 3. g3 {[%clk 0:02:59.3]} 3... Nc6 {[%clk 0:02:53.7]}
4. Bg2 {[%clk 0:02:59.6]} 4... Bg7 {[%clk 0:02:51.8]} 5. O-O {[%clk 0:03:00.1]}
5... e5 {[%clk 0:02:50.8]} 6. Nc3 {[%clk 0:02:59.9]} 6... Nge7 {[%clk
0:02:50.3]} 7. Ne1 {[%clk 0:03:00]} 7... d6 {[%clk 0:02:42.7]} 8. Nc2 {[%clk
0:03:00.1]} 8... Be6 {[%clk 0:02:41.5]} 9. Ne3 {[%clk 0:02:59.9]} 9... O-O
{[%clk 0:02:40.2]} 10. Ned5 {[%clk 0:02:58.9]} 10... Rb8 {[%clk 0:02:33.5]} 11.
d3 {[%clk 0:02:58.7]} 11... a6 {[%clk 0:02:29.4]} 12. a4 {[%clk 0:02:56.2]}
12... Bxd5 {[%clk 0:02:24.1]} 13. Nxd5 {[%clk 0:02:53.8]} 13... Nxd5 {[%clk
0:02:22.7]} 14. Bxd5 {[%clk 0:02:49.7]} 14... Nb4 {[%clk 0:02:19.2]} 15. Bg2
{[%clk 0:02:48.9]} 15... b5 {[%clk 0:02:17.4]} 16. axb5 {[%clk 0:02:48.3]} 16...
axb5 {[%clk 0:02:18.3]} 17. Bd2 {[%clk 0:02:44.4]} 17... bxc4 {[%clk 0:02:11.6]}
18. dxc4 {[%clk 0:02:45.3]} 18... e4 {[%clk 0:01:48.3]} 19. Bxe4 {[%clk
0:02:34]} 19... Bxb2 {[%clk 0:01:41.4]} 20. Rb1 {[%clk 0:02:30.7]} 20... Bg7
{[%clk 0:01:33.3]} 21. Bf4 {[%clk 0:02:30.5]} 21... Re8 {[%clk 0:01:26.9]} 22.
Bf3 {[%clk 0:02:24.9]} 22... Be5 {[%clk 0:01:23.3]} 23. Qd2 {[%clk 0:02:16.4]}
23... Qf6 {[%clk 0:01:17.1]} 24. Rfd1 {[%clk 0:02:00.9]} 24... Bxf4 {[%clk
0:01:13.9]} 25. Qxf4 {[%clk 0:02:01.8]} 25... Qxf4 {[%clk 0:01:11]} 26. gxf4
{[%clk 0:02:02.7]} 26... Nc2 {[%clk 0:01:06.2]} 27. Rxb8 {[%clk 0:01:53.5]}
27... Rxb8 {[%clk 0:01:07.1]} 28. Rxd6 {[%clk 0:01:53.4]} 28... Rb1+ {[%clk
0:01:07.1]} 29. Kg2 {[%clk 0:01:53.6]} 29... Ne1+ {[%clk 0:01:07.7]} 30. Kg3
{[%clk 0:01:51.1]} 30... Nxf3 {[%clk 0:01:08.1]} 31. Kxf3 {[%clk 0:01:51.7]}
31... Rc1 {[%clk 0:01:08.3]} 32. f5 {[%clk 0:01:26.5]} 32... gxf5 {[%clk
0:00:55.7]} 33. Rd5 {[%clk 0:01:24.3]} 33... Rxc4 {[%clk 0:00:55.2]} 34. Rxf5
{[%clk 0:01:24.3]} 34... Kg7 {[%clk 0:00:53.1]} 35. e3 {[%clk 0:01:20.3]} 35...
Kg6 {[%clk 0:00:52.6]} 36. Rd5 {[%clk 0:01:18.8]} 36... Rc1 {[%clk 0:00:51.1]}
37. h4 {[%clk 0:01:05.9]} 37... c4 {[%clk 0:00:46.7]} 38. Rg5+ {[%clk
0:01:05.3]} 38... Kf6 {[%clk 0:00:42.5]} 39. Rh5 {[%clk 0:01:03.7]} 39... Kg6
{[%clk 0:00:32.8]} 40. Rc5 {[%clk 0:01:03.3]} 40... c3 {[%clk 0:00:31.3]} 41.
Ke2 {[%clk 0:00:51.9]} 41... c2 {[%clk 0:00:24]} 42. e4 {[%clk 0:00:43.9]} 42...
h5 {[%clk 0:00:14.9]} 43. Rg5+ {[%clk 0:00:42.8]} 43... Kh6 {[%clk 0:00:15.2]}
44. Rc5 {[%clk 0:00:43]} 44... Rh1 {[%clk 0:00:14.6]} 45. Rc6+ {[%clk
0:00:41.5]} 45... Kg7 {[%clk 0:00:13.1]} 46. Rxc2 {[%clk 0:00:41]} 46... Rxh4
{[%clk 0:00:13.6]} 47. Ke3 {[%clk 0:00:39.9]} 47... Kg6 {[%clk 0:00:12.2]} 48.
f3 {[%clk 0:00:38.3]} 48... f6 {[%clk 0:00:12.3]} 49. Rc1 {[%clk 0:00:28]} 49...
Rh2 {[%clk 0:00:11.7]} 50. Kf4 {[%clk 0:00:26.8]} 50... Rg2 {[%clk 0:00:10.9]}
51. Rc6 {[%clk 0:00:23.4]} 51... Rg5 {[%clk 0:00:09.6]} 52. Ke3 {[%clk
0:00:20.1]} 52... h4 {[%clk 0:00:09.6]} 53. f4 {[%clk 0:00:20.3]} 53... Rg3+
{[%clk 0:00:07.5]} 54. Kf2 {[%clk 0:00:20.6]} 54... Kg7 {[%clk 0:00:06.8]} 55.
Rc7+ {[%clk 0:00:19.9]} 55... Kg6 {[%clk 0:00:07]} 56. Rc6 {[%clk 0:00:20.3]}
56... Kg7 {[%clk 0:00:07.2]} 57. Rc5 {[%clk 0:00:16.7]} 57... Kg6 {[%clk
0:00:07.3]} 58. Rc8 {[%clk 0:00:16.3]} 58... Kg7 {[%clk 0:00:07]} 59. Rc6 {[%clk
0:00:14.2]} 59... Rg4 {[%clk 0:00:06]} 60. Kf3 {[%clk 0:00:10.6]} 60... Rg3+
{[%clk 0:00:06.4]} 61. Ke2 {[%clk 0:00:10.9]} 61... Rg4 {[%clk 0:00:06.5]} 62.
Ke3 {[%clk 0:00:11.2]} 62... h3 {[%clk 0:00:06.2]} 63. Rc1 {[%clk 0:00:08.7]}
63... h2 {[%clk 0:00:04.9]} 64. Rh1 {[%clk 0:00:08.3]} 64... Rg3+ {[%clk
0:00:04.1]} 65. Kf2 {[%clk 0:00:07.7]} 65... Rh3 {[%clk 0:00:04.5]} 66. Kg2
{[%clk 0:00:07.7]} 66... Re3 {[%clk 0:00:04.6]} 67. Rxh2 {[%clk 0:00:05.2]}
67... Rxe4 {[%clk 0:00:05]} 68. Kf3 {[%clk 0:00:05.8]} 68... Rb4 {[%clk
0:00:04.6]} 69. Kg4 {[%clk 0:00:05.6]} 69... Kg6 {[%clk 0:00:04.3]} 70. Re2
{[%clk 0:00:04.6]} 70... f5+ {[%clk 0:00:04.6]} 71. Kg3 {[%clk 0:00:05.1]} 71...
Rb3+ {[%clk 0:00:05.2]} 72. Kf2 {[%clk 0:00:04.9]} 72... Kh5 {[%clk 0:00:05.6]}
73. Re3 {[%clk 0:00:04.5]} 73... Rxe3 {[%clk 0:00:02.2]} 74. Kxe3 {[%clk
0:00:05.4]} 74... Kg4 {[%clk 0:00:02.6]} 75. Ke2 {[%clk 0:00:04.9]} 75... Kxf4
{[%clk 0:00:03.5]} 76. Kf2 {[%clk 0:00:05.6]} 76... Ke4 {[%clk 0:00:04.1]} 77.
Ke2 {[%clk 0:00:06]} 77... f4 {[%clk 0:00:05]} 78. Kf2 {[%clk 0:00:06.6]} 78...
Ke5 {[%clk 0:00:05]} 79. Kf3 {[%clk 0:00:06.8]} 79... Kf5 {[%clk 0:00:05.9]} 80.
Kf2 {[%clk 0:00:07.5]} 80... Kg4 {[%clk 0:00:06.8]} 81. Kg2 {[%clk 0:00:07.9]}
81... f3+ {[%clk 0:00:07.6]} 82. Kf2 {[%clk 0:00:08.5]} 82... Kf4 {[%clk
0:00:08.1]} 83. Kf1 {[%clk 0:00:09.1]} 83... Ke3 {[%clk 0:00:08.7]} 84. Ke1
{[%clk 0:00:09.6]} 84... Ke4 {[%clk 0:00:09.2]} 85. Kf2 {[%clk 0:00:09.9]} 85...
Kf4 {[%clk 0:00:10.1]} 86. Kf1 {[%clk 0:00:10.2]} 86... Kg4 {[%clk 0:00:11]} 87.
Kf2 {[%clk 0:00:10.4]} 87... Kf4 {[%clk 0:00:11.2]} 1/2-1/2

[Event "Late-Titled-Tuesday-Blitz-June-04-2024"]
[Site "Chess.com"]
[Date "2024.06.04"]
[Round "4"]
[White "Synctel"]
[Black "Godzillator"]
[Result "1/2-1/2"]
[WhiteElo "2083"]
[BlackElo "2424"]
[TimeControl "180+1"]
[EndTime "14:40:20 PDT"]
[Termination "Game drawn - insufficient material"]

1. d4 {[%clk 0:02:58.9]} 1... d5 {[%clk 0:02:59]} 2. Nf3 {[%clk 0:02:58.9]} 2...
Nf6 {[%clk 0:02:56.7]} 3. e3 {[%clk 0:02:58.8]} 3... g6 {[%clk 0:02:57]} 4. c4
{[%clk 0:02:49.2]} 4... c6 {[%clk 0:02:53.4]} 5. Nc3 {[%clk 0:02:47.2]} 5... Bg7
{[%clk 0:02:53.1]} 6. Be2 {[%clk 0:02:43.2]} 6... O-O {[%clk 0:02:52.6]} 7. b3
{[%clk 0:02:41.7]} 7... a6 {[%clk 0:02:51.6]} 8. O-O {[%clk 0:02:31.5]} 8... b5
{[%clk 0:02:51.6]} 9. cxd5 {[%clk 0:02:28.1]} 9... cxd5 {[%clk 0:02:51.4]} 10.
Ba3 {[%clk 0:02:06.7]} 10... Nc6 {[%clk 0:02:47.8]} 11. Bc5 {[%clk 0:02:05.1]}
11... Bf5 {[%clk 0:02:40.9]} 12. b4 {[%clk 0:01:51.6]} 12... Ne4 {[%clk
0:02:22.7]} 13. Nxe4 {[%clk 0:01:46.4]} 13... Bxe4 {[%clk 0:02:19]} 14. a4
{[%clk 0:01:41.1]} 14... bxa4 {[%clk 0:01:59]} 15. Qxa4 {[%clk 0:01:35.9]} 15...
Qd7 {[%clk 0:01:59]} 16. Nd2 {[%clk 0:00:55.6]} 16... Bf5 {[%clk 0:01:55.1]} 17.
Bxa6 {[%clk 0:00:46.8]} 17... Bd3 {[%clk 0:01:51.2]} 18. b5 {[%clk 0:00:37.3]}
18... Bxf1 {[%clk 0:01:44.9]} 19. bxc6 {[%clk 0:00:33.8]} 19... Rxa6 {[%clk
0:01:10.3]} 20. cxd7 {[%clk 0:00:31.3]} 20... Rxa4 {[%clk 0:01:09.6]} 21. Rxa4
{[%clk 0:00:31]} 21... Bb5 {[%clk 0:01:08.5]} 22. Bxe7 {[%clk 0:00:18.8]} 22...
Bxa4 {[%clk 0:00:45.9]} 23. Bxf8 {[%clk 0:00:19.1]} 23... Bxd7 {[%clk
0:00:45.9]} 24. Bxg7 {[%clk 0:00:19.2]} 24... Kxg7 {[%clk 0:00:46]} 25. Nb3
{[%clk 0:00:17.7]} 25... Kf6 {[%clk 0:00:44.4]} 26. Nc5 {[%clk 0:00:18.3]} 26...
Bc6 {[%clk 0:00:44]} 27. f3 {[%clk 0:00:18.7]} 27... Ke7 {[%clk 0:00:42.9]} 28.
Kf2 {[%clk 0:00:19.3]} 28... Kd6 {[%clk 0:00:43]} 29. g3 {[%clk 0:00:18]} 29...
f5 {[%clk 0:00:43.1]} 30. h4 {[%clk 0:00:17.7]} 30... Bb5 {[%clk 0:00:42.3]} 31.
g4 {[%clk 0:00:15.8]} 31... fxg4 {[%clk 0:00:38.7]} 32. fxg4 {[%clk 0:00:16.7]}
32... Ke7 {[%clk 0:00:28.8]} 33. Kg3 {[%clk 0:00:16]} 33... Kf6 {[%clk
0:00:28.1]} 34. Kf4 {[%clk 0:00:15.9]} 34... h6 {[%clk 0:00:28]} 35. g5+ {[%clk
0:00:15.7]} 35... hxg5+ {[%clk 0:00:28]} 36. hxg5+ {[%clk 0:00:16.6]} 36... Ke7
{[%clk 0:00:28.2]} 37. Nb3 {[%clk 0:00:13.7]} 37... Bc4 {[%clk 0:00:27.5]} 38.
Nd2 {[%clk 0:00:13.4]} 38... Kd6 {[%clk 0:00:19.6]} 39. e4 {[%clk 0:00:11.9]}
39... Ba2 {[%clk 0:00:17]} 40. e5+ {[%clk 0:00:10.2]} 40... Ke6 {[%clk
0:00:16.5]} 41. Nf1 {[%clk 0:00:08.9]} 41... Bc4 {[%clk 0:00:14.2]} 42. Ne3
{[%clk 0:00:09.5]} 42... Bd3 {[%clk 0:00:13.4]} 43. Kg3 {[%clk 0:00:09.2]} 43...
Be4 {[%clk 0:00:13.5]} 44. Kf2 {[%clk 0:00:09.6]} 44... Kd7 {[%clk 0:00:13.7]}
45. Ke1 {[%clk 0:00:10.2]} 45... Kc6 {[%clk 0:00:13.9]} 46. Kd2 {[%clk 0:00:11]}
46... Kb5 {[%clk 0:00:14.2]} 47. Kc3 {[%clk 0:00:11.7]} 47... Ka5 {[%clk
0:00:14.6]} 48. Nf1 {[%clk 0:00:11.4]} 48... Kb6 {[%clk 0:00:14.7]} 49. Nd2
{[%clk 0:00:11.3]} 49... Bf5 {[%clk 0:00:14.1]} 50. Kb4 {[%clk 0:00:11.2]} 50...
Bg4 {[%clk 0:00:13.5]} 51. Nf1 {[%clk 0:00:10.8]} 51... Bf5 {[%clk 0:00:13.5]}
52. Ng3 {[%clk 0:00:11.2]} 52... Bd3 {[%clk 0:00:13]} 53. Kc3 {[%clk 0:00:10.8]}
53... Bb1 {[%clk 0:00:11.6]} 54. Ne2 {[%clk 0:00:10.9]} 54... Kc6 {[%clk
0:00:11.5]} 55. Nf4 {[%clk 0:00:11.1]} 55... Bf5 {[%clk 0:00:10.9]} 56. Kb4
{[%clk 0:00:09.9]} 56... Be4 {[%clk 0:00:11.3]} 57. Ne6 {[%clk 0:00:08.8]} 57...
Bb1 {[%clk 0:00:08.6]} 58. Nc5 {[%clk 0:00:07.5]} 58... Bf5 {[%clk 0:00:07.9]}
59. Nb3 {[%clk 0:00:04.4]} 59... Bc2 {[%clk 0:00:07.3]} 60. Nc5 {[%clk
0:00:04.4]} 60... Bf5 {[%clk 0:00:07.3]} 61. Nb3 {[%clk 0:00:04.1]} 61... Bc2
{[%clk 0:00:07.4]} 62. Na5+ {[%clk 0:00:05]} 62... Kd7 {[%clk 0:00:07]} 63. Kc5
{[%clk 0:00:05.4]} 63... Ke6 {[%clk 0:00:07.2]} 64. Nb7 {[%clk 0:00:04.8]} 64...
Be4 {[%clk 0:00:05.2]} 65. Nd6 {[%clk 0:00:05.3]} 65... Bf3 {[%clk 0:00:05]} 66.
Kc6 {[%clk 0:00:05]} 66... Bg2 {[%clk 0:00:04.5]} 67. Kc5 {[%clk 0:00:04.7]}
67... Be4 {[%clk 0:00:04.6]} 68. Kc6 {[%clk 0:00:05.1]} 68... Bf3 {[%clk
0:00:04.6]} 69. Kc7 {[%clk 0:00:05.3]} 69... Bg2 {[%clk 0:00:04.7]} 70. Kd8
{[%clk 0:00:05.8]} 70... Bf3 {[%clk 0:00:03.8]} 71. Ke8 {[%clk 0:00:06.2]} 71...
Be4 {[%clk 0:00:04.5]} 72. Kf8 {[%clk 0:00:06.6]} 72... Bd3 {[%clk 0:00:05]} 73.
Kg7 {[%clk 0:00:07]} 73... Bc2 {[%clk 0:00:05.5]} 74. Ne8 {[%clk 0:00:05.5]}
74... Kf5 {[%clk 0:00:05]} 75. Nc7 {[%clk 0:00:04.5]} 75... Kxg5 {[%clk
0:00:04.8]} 76. Nxd5 {[%clk 0:00:05.2]} 76... Bb3 {[%clk 0:00:02.2]} 77. Ne3
{[%clk 0:00:04]} 77... Kf4 {[%clk 0:00:02.2]} 78. Ng2+ {[%clk 0:00:03.5]} 78...
Kg3 {[%clk 0:00:02.2]} 79. Kxg6 {[%clk 0:00:02.2]} 79... Kxg2 {[%clk 0:00:02]}
80. Kf6 {[%clk 0:00:02.9]} 80... Kf3 {[%clk 0:00:02.4]} 81. e6 {[%clk
0:00:03.5]} 81... Ke4 {[%clk 0:00:01.1]} 82. e7 {[%clk 0:00:02.2]} 82... Ba4
{[%clk 0:00:01.1]} 83. Kf7 {[%clk 0:00:02]} 83... Kxd4 {[%clk 0:00:01.4]} 84.
e8=Q {[%clk 0:00:02.6]} 84... Bxe8+ {[%clk 0:00:01.8]} 1/2-1/2

[Event "Late-Titled-Tuesday-Blitz-June-04-2024"]
[Site "Chess.com"]
[Date "2024.06.04"]
[Round "4"]
[White "norwaytoadog"]
[Black "GiorgianBarbosa"]
[Result "1-0"]
[WhiteElo "2342"]
[BlackElo "2489"]
[TimeControl "180+1"]
[EndTime "14:40:27 PDT"]
[Termination "norwaytoadog won by checkmate"]

1. e4 {[%clk 0:02:59.5]} 1... c5 {[%clk 0:02:59.9]} 2. Nf3 {[%clk 0:02:59.5]}
2... d6 {[%clk 0:03:00.2]} 3. Bb5+ {[%clk 0:02:59.4]} 3... Bd7 {[%clk
0:02:59.9]} 4. Bxd7+ {[%clk 0:02:59.2]} 4... Nxd7 {[%clk 0:03:00.8]} 5. O-O
{[%clk 0:02:59.5]} 5... Ngf6 {[%clk 0:03:01.7]} 6. Qe2 {[%clk 0:02:59.8]} 6...
e6 {[%clk 0:03:01.8]} 7. b3 {[%clk 0:02:58.9]} 7... Be7 {[%clk 0:03:02.3]} 8.
Bb2 {[%clk 0:02:59.4]} 8... O-O {[%clk 0:03:03.2]} 9. c4 {[%clk 0:02:59.3]} 9...
Re8 {[%clk 0:03:03.8]} 10. Nc3 {[%clk 0:02:57.9]} 10... a6 {[%clk 0:03:02.8]}
11. d3 {[%clk 0:02:57]} 11... Qb8 {[%clk 0:03:01.5]} 12. Nd2 {[%clk 0:02:51.5]}
12... b5 {[%clk 0:03:01.2]} 13. f4 {[%clk 0:02:51.8]} 13... b4 {[%clk
0:03:00.4]} 14. Nd1 {[%clk 0:02:51.4]} 14... Bf8 {[%clk 0:03:00.9]} 15. Ne3
{[%clk 0:02:51]} 15... d5 {[%clk 0:02:59.5]} 16. e5 {[%clk 0:02:48.8]} 16... d4
{[%clk 0:02:53.6]} 17. Nd1 {[%clk 0:02:46.4]} 17... g6 {[%clk 0:02:45.7]} 18.
exf6 {[%clk 0:02:45.6]} 18... Nxf6 {[%clk 0:02:44.4]} 19. Ne4 {[%clk 0:02:42.1]}
19... Nh5 {[%clk 0:02:42.6]} 20. Bc1 {[%clk 0:02:37.2]} 20... Be7 {[%clk
0:02:39.3]} 21. Qf3 {[%clk 0:02:21]} 21... Ng7 {[%clk 0:02:36.4]} 22. Ndf2
{[%clk 0:02:19.9]} 22... f5 {[%clk 0:02:36.3]} 23. Ng3 {[%clk 0:02:15.5]} 23...
Bf6 {[%clk 0:02:35.2]} 24. Bd2 {[%clk 0:02:12.8]} 24... a5 {[%clk 0:02:35.3]}
25. a3 {[%clk 0:02:08.1]} 25... h5 {[%clk 0:02:21.5]} 26. Ra2 {[%clk 0:02:02]}
26... a4 {[%clk 0:02:17.7]} 27. axb4 {[%clk 0:01:53.3]} 27... axb3 {[%clk
0:02:18.6]} 28. Rb2 {[%clk 0:01:49.6]} 28... Ra2 {[%clk 0:02:11]} 29. Rfb1
{[%clk 0:01:49.7]} 29... cxb4 {[%clk 0:02:11.9]} 30. Qd1 {[%clk 0:01:47.3]}
30... h4 {[%clk 0:02:05.2]} 31. Ne2 {[%clk 0:01:44.7]} 31... Nh5 {[%clk
0:02:03.1]} 32. Qxb3 {[%clk 0:01:43.7]} 32... Rxb2 {[%clk 0:01:35.9]} 33. Rxb2
{[%clk 0:01:43.3]} 33... Qa8 {[%clk 0:01:15.1]} 34. Qxb4 {[%clk 0:01:39.8]}
34... e5 {[%clk 0:01:13.9]} 35. fxe5 {[%clk 0:01:09.7]} 35... Bxe5 {[%clk
0:01:14.8]} 36. Bg5 {[%clk 0:00:45]} 36... Bd6 {[%clk 0:00:55.7]} 37. Qb3 {[%clk
0:00:38.4]} 37... f4 {[%clk 0:00:27.3]} 38. Ra2 {[%clk 0:00:37.4]} 38... Qc8
{[%clk 0:00:23]} 39. Ne4 {[%clk 0:00:35.5]} 39... Bf8 {[%clk 0:00:13.7]} 40. c5+
{[%clk 0:00:34.6]} 40... Kh7 {[%clk 0:00:12.9]} 41. Ra7+ {[%clk 0:00:34.3]}
41... Bg7 {[%clk 0:00:13.4]} 42. Qf7 {[%clk 0:00:31.1]} 42... Rxe4 {[%clk
0:00:08.4]} 43. dxe4 {[%clk 0:00:28.9]} 43... Qg4 {[%clk 0:00:08.6]} 44. Nxf4
{[%clk 0:00:20.7]} 44... Qxg5 {[%clk 0:00:05.8]} 45. Qxg6+ {[%clk 0:00:20.4]}
45... Qxg6 {[%clk 0:00:05.7]} 46. Nxg6 {[%clk 0:00:20.8]} 46... Kxg6 {[%clk
0:00:06.6]} 47. Rd7 {[%clk 0:00:18.1]} 47... Nf4 {[%clk 0:00:05.5]} 48. c6
{[%clk 0:00:17.1]} 48... d3 {[%clk 0:00:04.7]} 49. c7 {[%clk 0:00:16.1]} 49...
Ne2+ {[%clk 0:00:03.9]} 50. Kf2 {[%clk 0:00:15.9]} 50... Bd4+ {[%clk 0:00:02.8]}
51. Ke1 {[%clk 0:00:15.4]} 51... Bc3+ {[%clk 0:00:01.8]} 52. Kd1 {[%clk
0:00:15.5]} 52... Nd4 {[%clk 0:00:01.6]} 53. c8=Q {[%clk 0:00:12.8]} 53... Kg5
{[%clk 0:00:01.7]} 54. Qg8+ {[%clk 0:00:12.3]} 54... Kf4 {[%clk 0:00:02.6]} 55.
Rf7+ {[%clk 0:00:11.3]} 55... Kxe4 {[%clk 0:00:02.6]} 56. Qg4+ {[%clk 0:00:11]}
56... Kd5 {[%clk 0:00:03.4]} 57. Rd7+ {[%clk 0:00:09.9]} 57... Kc4 {[%clk
0:00:04.3]} 58. Rxd4+ {[%clk 0:00:08.9]} 58... Bxd4 {[%clk 0:00:05.2]} 59. Qxh4
{[%clk 0:00:08.4]} 59... Kc3 {[%clk 0:00:06.1]} 60. Qe4 {[%clk 0:00:06.8]} 60...
Bc5 {[%clk 0:00:05.5]} 61. h4 {[%clk 0:00:05.8]} 61... Bg1 {[%clk 0:00:05.9]}
62. h5 {[%clk 0:00:05.7]} 62... Bd4 {[%clk 0:00:04.4]} 63. h6 {[%clk 0:00:05.6]}
63... Bh8 {[%clk 0:00:05.3]} 64. h7 {[%clk 0:00:05.2]} 64... Bd4 {[%clk
0:00:04.8]} 65. Qxd4+ {[%clk 0:00:04.6]} 65... Kxd4 {[%clk 0:00:05.7]} 66. h8=Q+
{[%clk 0:00:04.5]} 66... Ke3 {[%clk 0:00:06.6]} 67. Qe5+ {[%clk 0:00:04.3]}
67... Kf2 {[%clk 0:00:06.7]} 68. Kd2 {[%clk 0:00:04.5]} 68... Kxg2 {[%clk
0:00:07]} 69. Kxd3 {[%clk 0:00:04.8]} 69... Kf3 {[%clk 0:00:07.9]} 70. Qf5+
{[%clk 0:00:04.8]} 70... Kg2 {[%clk 0:00:08.2]} 71. Qf4 {[%clk 0:00:04.6]} 71...
Kg1 {[%clk 0:00:07.4]} 72. Qf3 {[%clk 0:00:04.5]} 72... Kh2 {[%clk 0:00:07.2]}
73. Qg4 {[%clk 0:00:04.9]} 73... Kh1 {[%clk 0:00:07.4]} 74. Ke3 {[%clk
0:00:05.4]} 74... Kh2 {[%clk 0:00:08.3]} 75. Kf2 {[%clk 0:00:05.7]} 75... Kh1
{[%clk 0:00:03.5]} 76. Qh5# {[%clk 0:00:06.6]} 1-0

[Event "Late-Titled-Tuesday-Blitz-June-04-2024"]
[Site "Chess.com"]
[Date "2024.06.04"]
[Round "4"]
[White "FXDon77"]
[Black "Polish_fighter3000"]
[Result "0-1"]
[WhiteElo "2867"]
[BlackElo "3079"]
[TimeControl "180+1"]
[EndTime "14:40:41 PDT"]
[Termination "Polish_fighter3000 won on time"]

1. e4 {[%clk 0:03:00.9]} 1... e6 {[%clk 0:02:58.1]} 2. d4 {[%clk 0:02:59.3]}
2... d5 {[%clk 0:02:58.7]} 3. e5 {[%clk 0:02:57]} 3... c5 {[%clk 0:02:58.2]} 4.
c3 {[%clk 0:02:57.2]} 4... Qb6 {[%clk 0:02:56.9]} 5. Nf3 {[%clk 0:02:56.9]} 5...
Nc6 {[%clk 0:02:55.8]} 6. a3 {[%clk 0:02:56.4]} 6... c4 {[%clk 0:02:54]} 7. Be2
{[%clk 0:02:53]} 7... Bd7 {[%clk 0:02:52]} 8. Nbd2 {[%clk 0:02:53.4]} 8... Na5
{[%clk 0:02:50.5]} 9. Rb1 {[%clk 0:02:49.3]} 9... Ne7 {[%clk 0:02:44.5]} 10. h4
{[%clk 0:02:48.6]} 10... Qc7 {[%clk 0:02:39.5]} 11. h5 {[%clk 0:02:48.4]} 11...
h6 {[%clk 0:02:39.1]} 12. Nf1 {[%clk 0:02:48.4]} 12... Nc8 {[%clk 0:02:32.6]}
13. Bf4 {[%clk 0:02:46.3]} 13... Nb6 {[%clk 0:02:20.7]} 14. N3d2 {[%clk
0:02:34.5]} 14... Ba4 {[%clk 0:02:17.4]} 15. Qc1 {[%clk 0:02:34.1]} 15... O-O-O
{[%clk 0:02:08.9]} 16. Bg3 {[%clk 0:02:27.1]} 16... Kb8 {[%clk 0:02:06.2]} 17.
Ne3 {[%clk 0:02:26.7]} 17... a6 {[%clk 0:02:04.6]} 18. Bg4 {[%clk 0:02:26.1]}
18... Ka7 {[%clk 0:02:02.8]} 19. O-O {[%clk 0:02:26]} 19... Re8 {[%clk
0:01:59.6]} 20. Qe1 {[%clk 0:02:19.5]} 20... Rg8 {[%clk 0:01:55.7]} 21. Qe2
{[%clk 0:02:09.1]} 21... Qd7 {[%clk 0:01:50.3]} 22. f4 {[%clk 0:01:51.4]} 22...
f5 {[%clk 0:01:46.7]} 23. Bf3 {[%clk 0:01:51]} 23... Be7 {[%clk 0:01:44.5]} 24.
Bf2 {[%clk 0:01:48.9]} 24... Ref8 {[%clk 0:01:37.3]} 25. g3 {[%clk 0:01:48.9]}
25... Rf7 {[%clk 0:01:26.4]} 26. Kg2 {[%clk 0:01:49.1]} 26... Nb3 {[%clk
0:01:26.3]} 27. Rh1 {[%clk 0:01:44.4]} 27... Nxd2 {[%clk 0:01:24.3]} 28. Qxd2
{[%clk 0:01:44.2]} 28... Rgf8 {[%clk 0:01:24.8]} 29. Bd1 {[%clk 0:01:19.7]}
29... Bxd1 {[%clk 0:01:14]} 30. Qxd1 {[%clk 0:01:19.6]} 30... Qa4 {[%clk
0:01:08.8]} 31. Qd2 {[%clk 0:01:09.8]} 31... Qb3 {[%clk 0:01:05.8]} 32. Qc2
{[%clk 0:00:57.9]} 32... Qxc2 {[%clk 0:01:02.4]} 33. Nxc2 {[%clk 0:00:57.5]}
33... Na4 {[%clk 0:01:03]} 34. Be1 {[%clk 0:00:56.6]} 34... Kb6 {[%clk
0:00:52.4]} 35. Bd2 {[%clk 0:00:56.6]} 35... a5 {[%clk 0:00:48]} 36. Rhg1 {[%clk
0:00:52]} 36... g6 {[%clk 0:00:39.7]} 37. hxg6 {[%clk 0:00:40.7]} 37... Rg7
{[%clk 0:00:39.9]} 38. Kf3 {[%clk 0:00:35.5]} 38... h5 {[%clk 0:00:39.6]} 39.
Rh1 {[%clk 0:00:34.1]} 39... Rh8 {[%clk 0:00:39.5]} 40. Ne3 {[%clk 0:00:31.2]}
40... Kc6 {[%clk 0:00:35.1]} 41. Rh3 {[%clk 0:00:30.2]} 41... Rxg6 {[%clk
0:00:34.7]} 42. Be1 {[%clk 0:00:26.8]} 42... b5 {[%clk 0:00:06]} 43. Rh2 {[%clk
0:00:26.8]} 43... Nb6 {[%clk 0:00:05.9]} 44. Rc1 {[%clk 0:00:26.2]} 44... Rg7
{[%clk 0:00:04.5]} 45. Rcc2 {[%clk 0:00:26.6]} 45... Nd7 {[%clk 0:00:02.2]} 46.
Rh3 {[%clk 0:00:27]} 46... Kb6 {[%clk 0:00:02.4]} 47. Rch2 {[%clk 0:00:27.6]}
47... Rgh7 {[%clk 0:00:03]} 48. Bd2 {[%clk 0:00:26.8]} 48... Nb8 {[%clk
0:00:03.6]} 49. Nc2 {[%clk 0:00:27.3]} 49... Nc6 {[%clk 0:00:04]} 50. Rh1 {[%clk
0:00:27.6]} 50... Rh6 {[%clk 0:00:02.4]} 51. R3h2 {[%clk 0:00:27]} 51... R6h7
{[%clk 0:00:02.7]} 52. Rh3 {[%clk 0:00:27.4]} 52... Bd8 {[%clk 0:00:02.9]} 53.
R3h2 {[%clk 0:00:27.9]} 53... Ne7 {[%clk 0:00:02.7]} 54. Rh3 {[%clk 0:00:28.4]}
54... Nc6 {[%clk 0:00:02.9]} 55. R3h2 {[%clk 0:00:28.7]} 55... Kc7 {[%clk
0:00:03.5]} 56. Rh3 {[%clk 0:00:29.3]} 56... Kd7 {[%clk 0:00:04.2]} 57. R3h2
{[%clk 0:00:30]} 57... Ke8 {[%clk 0:00:04.8]} 58. Rh3 {[%clk 0:00:30.6]} 58...
Kf7 {[%clk 0:00:05.4]} 59. R3h2 {[%clk 0:00:28.4]} 59... Be7 {[%clk 0:00:05.9]}
60. Rh3 {[%clk 0:00:28.2]} 60... Kg6 {[%clk 0:00:06.1]} 61. Ra1 {[%clk
0:00:22.4]} 61... Rb8 {[%clk 0:00:06.3]} 62. Rhh1 {[%clk 0:00:21.8]} 62... Rhh8
{[%clk 0:00:05.9]} 63. Ne3 {[%clk 0:00:19.9]} 63... Rb7 {[%clk 0:00:05.8]} 64.
Rh2 {[%clk 0:00:19.2]} 64... Rb6 {[%clk 0:00:05.9]} 65. Rhh1 {[%clk 0:00:19.4]}
65... Kf7 {[%clk 0:00:05.9]} 66. Rh2 {[%clk 0:00:19.5]} 66... Kg7 {[%clk
0:00:06.4]} 67. Rhh1 {[%clk 0:00:20]} 67... Kg6 {[%clk 0:00:06.6]} 68. Rh2
{[%clk 0:00:20.7]} 68... Ra6 {[%clk 0:00:06.9]} 69. Rhh1 {[%clk 0:00:20.8]}
69... Rha8 {[%clk 0:00:07.1]} 70. Nc2 {[%clk 0:00:14.9]} 70... b4 {[%clk
0:00:07]} 71. axb4 {[%clk 0:00:14.7]} 71... axb4 {[%clk 0:00:07.9]} 72. Rxa6
{[%clk 0:00:06.9]} 72... Rxa6 {[%clk 0:00:08.8]} 73. Ra1 {[%clk 0:00:07.1]}
73... Rxa1 {[%clk 0:00:06]} 74. Nxa1 {[%clk 0:00:07.3]} 74... b3 {[%clk
0:00:06.5]} 75. Bc1 {[%clk 0:00:07.6]} 75... Nd8 {[%clk 0:00:06]} 76. Bd2 {[%clk
0:00:06.8]} 76... Nf7 {[%clk 0:00:06.6]} 77. Bc1 {[%clk 0:00:06.4]} 77... Nh6
{[%clk 0:00:06.9]} 78. Bd2 {[%clk 0:00:06.6]} 78... Ng4 {[%clk 0:00:07.4]} 79.
Bc1 {[%clk 0:00:07]} 79... h4 {[%clk 0:00:07.6]} 80. gxh4 {[%clk 0:00:06.3]}
80... Kh5 {[%clk 0:00:08.2]} 81. Bd2 {[%clk 0:00:04.4]} 81... Kxh4 {[%clk
0:00:08.6]} 82. Kg2 {[%clk 0:00:03.8]} 82... Nh6 {[%clk 0:00:07.8]} 83. Kf3
{[%clk 0:00:01.8]} 83... Kh3 {[%clk 0:00:07.8]} 84. Be1 {[%clk 0:00:01.2]} 84...
Ng4 {[%clk 0:00:07.6]} 85. Bg3 {[%clk 0:00:01.7]} 85... Nh2+ {[%clk 0:00:03.1]}
0-1